lending/lending_fUSD_20240522
["ID","MTS","AMOUNT","RATE_DAILY","PERIOD"]
[327737239,1716407527798,159.12,0.00021589,30]
[327737262,1716407959408,327.01,0.00025247,120]
[327737263,1716407959958,327.01,0.00027542,120]
[327737265,1716408026934,159.12,0.00021589,30]
[327737277,1716408505867,159.12,0.00021589,30]
[327737309,1716408631792,-1385.90735399,0.0001391,2]
[327737310,1716408631802,-406.15859567,0.0001391,2]
[327737311,1716408631811,-1684.56306889,0.00013911,2]
[327737312,1716408631823,-1406.6772788,0.00013911,2]
[327737313,1716408631833,-1245.65494893,0.00013912,2]
[327737314,1716408631843,-324.99711042,0.00013912,2]
[327737315,1716408631853,-534.78834702,0.00013913,2]
[327737316,1716408631863,-237.41199557,0.00013913,2]
[327737317,1716408631872,-1298.39020343,0.00013913,2]
[327737318,1716408631882,-887.55075335,0.00013913,2]
[327737319,1716408631892,-2363.51414189,0.00013913,2]
[327737320,1716408631902,-20212.48021067,0.00013913,2]
[327737321,1716408631915,-15166.4855069,0.00013913,2]
[327737322,1716408631925,-446.8178927,0.00013914,2]
[327737323,1716408631934,-4278.94902585,0.00013914,2]
[327737324,1716408631945,-4278.47361549,0.00013914,2]
[327737325,1716408631957,-3240.93051879,0.00013914,2]
[327737326,1716408631967,-204.71931777,0.00013915,2]
[327737327,1716408631976,-150.0,0.0001392,2]
[327737328,1716408631986,-1090.27219268,0.00013921,2]
[327737329,1716408631996,-713.07322149,0.00013931,2]
[327737330,1716408632005,-465.21,0.00013931,2]
[327737331,1716408632015,-914.99225585,0.00013932,2]
[327737332,1716408632024,-499.99,0.00013932,2]
[327737333,1716408632034,-2918.4686413,0.00013933,2]
[327737334,1716408632045,-38.80500705,0.00013933,2]
[327737335,1716408632057,-776.45499295,0.00013933,2]
[327737336,1716408632068,-153.62,0.00013973,2]
[327737337,1716408632077,-151.97,0.00013973,2]
[327737338,1716408632087,-243.74,0.00014987,2]
[327737339,1716408632098,-619.02429447,0.00015,2]
[327737340,1716408632108,-210.0,0.00015312,2]
[327737341,1716408632117,-836.6898477,0.00015662,2]
[327737342,1716408632126,-200.0,0.00015672,2]
[327737343,1716408632136,-2751.0,0.00015672,2]
[327737346,1716408632330,-500.0,0.00015672,2]
[327737347,1716408632341,-150.0,0.00015672,2]
[327737348,1716408632350,-1500.0,0.00015672,2]
[327737349,1716408632359,-200.0,0.00015672,2]
[327737350,1716408632370,-6332.01,0.00015672,2]
[327737351,1716408632380,-250.0,0.0001616,2]
[327737352,1716408632390,-8504.86,0.00016168,2]
[327737353,1716408632399,-2547.86451751,0.00016192,2]
[327737354,1716408632409,-2717.17,0.00016338,2]
[327737355,1716408632418,-701.17,0.00016438,2]
[327737356,1716408632428,-3259.04,0.00016712,2]
[327737357,1716408632438,-150.99,0.00016712,2]
[327737358,1716408632447,-178.92,0.00016712,2]
[327737359,1716408632457,-312.68,0.00016724,2]
[327737360,1716408632466,-293.0,0.00016843,2]
[327737361,1716408632476,-250.0,0.00016972,2]
[327737362,1716408632485,-243.74,0.0001725,2]
[327737363,1716408632495,-167.0,0.00017447,2]
[327737364,1716408632512,-158.48372415,0.00018,2]
[327737365,1716408632530,-5616.32875453,0.0001806,2]
[327737366,1716408632567,-3851.19083298,0.0001806,2]
[327737367,1716408632593,-532.48041249,0.0001806,2]
[327737368,1716408632621,-321.50938792,0.00018062,2]
[327737369,1716408632649,-321.60405701,0.00018151,2]
[327737370,1716408632678,-89.51244608,0.00018151,2]
[327737371,1716408632689,-74.78755392,0.00018151,2]
[327737372,1716408632699,-1219.43057074,0.00018162,2]
[327737373,1716408632711,-1553.22652393,0.00018162,2]
[327737374,1716408632722,-1302.27342757,0.00018162,2]
[327737375,1716408632745,-1016.565072,0.00018162,2]
[327737376,1716408632768,-1306.24,0.00018162,2]
[327737377,1716408632858,-28005.49495151,0.00018162,2]
[327737385,1716408637759,-361.22735375,0.0001391,2]
[327737386,1716408637769,-526.12031069,0.0001391,2]
[327737387,1716408637780,-2168.70830158,0.00018162,2]
[327737388,1716408637817,-652308.29278213,0.00018162,2]
[327737389,1716408637827,-150.0,0.00018163,2]
[327737390,1716408637838,-245.678,0.00018163,2]
[327737391,1716408637848,-150.0,0.00018163,2]
[327737392,1716408637857,-150.0,0.00018163,2]
[327737393,1716408637867,-150.0,0.00018163,2]
[327737394,1716408637878,-974.0,0.00018163,2]
[327737395,1716408637887,-2161.0,0.00018163,2]
[327737396,1716408637897,-1400.0,0.00018163,2]
[327737397,1716408637906,-1642.0,0.00018163,2]
[327737398,1716408637917,-214.655,0.00018163,2]
[327737399,1716408637927,-444.0,0.00018163,2]
[327737400,1716408637936,-798.0,0.00018163,2]
[327737401,1716408637946,-2404.163,0.00018163,2]
[327737402,1716408637955,-1648.0,0.00018163,2]
[327737403,1716408637964,-1137.0,0.00018163,2]
[327737404,1716408637973,-25586.215,0.00018163,2]
[327737405,1716408637984,-5131.0,0.00018163,2]
[327737406,1716408637993,-481.846,0.00018163,2]
[327737407,1716408638002,-1061.0,0.00018163,2]
[327737408,1716408638012,-300.0,0.00018323,2]
[327737409,1716408638021,-327.01,0.00018361,2]
[327737410,1716408638031,-411.0,0.00018527,2]
[327737411,1716408638040,-187.25575375,0.00019076,2]
[327737412,1716408638050,-1000.0,0.00019077,2]
[327737413,1716408638059,-2717.17,0.00019078,2]
[327737414,1716408638068,-1272.77486946,0.00019175,2]
[327737415,1716408638078,-155.0,0.00019176,2]
[327737416,1716408638087,-406.0447685,0.00019178,2]
[327737417,1716408638096,-490.83623602,0.00019178,2]
[327737418,1716408638105,-500.0,0.00019178,2]
[327737419,1716408638115,-500.0,0.00019178,2]
[327737421,1716408638123,-500.0,0.00019178,2]
[327737423,1716408638133,-500.0,0.00019178,2]
[327737425,1716408638142,-500.0,0.00019178,2]
[327737426,1716408638152,-500.0,0.00019178,2]
[327737429,1716408638165,-500.0,0.00019178,2]
[327737430,1716408638175,-500.0,0.00019178,2]
[327737432,1716408638184,-500.0,0.00019178,2]
[327737434,1716408638193,-593.08427396,0.00019178,2]
[327737436,1716408638203,-500.0,0.00019178,2]
[327737438,1716408638212,-500.0,0.00019178,2]
[327737441,1716408638221,-500.0,0.00019178,2]
[327737443,1716408638231,-500.0,0.00019178,2]
[327737444,1716408638239,-55000.0,0.00019178,2]
[327737447,1716408638250,-3133.63,0.00019178,2]
[327737449,1716408638259,-3881.14394197,0.000192,2]
[327737450,1716408638268,-151.0,0.00019304,3]
[327737453,1716408638278,-151.0,0.00019304,2]
[327737454,1716408638287,-243.74,0.00019514,2]
[327737457,1716408638296,-321.50938792,0.00019522,2]
[327737459,1716408638305,-150.0,0.00019578,2]
[327737461,1716408638314,-1000.0,0.00019675,2]
[327737463,1716408638324,-300.0,0.00019693,2]
[327737465,1716408638333,-167.0,0.000198,2]
[327737466,1716408638342,-273.0,0.0002,2]
[327737468,1716408638351,-155.0,0.0002,2]
[327737470,1716408638361,-11046.34231626,0.0002,2]
[327737472,1716408638371,-1263.30642158,0.0002,2]
[327737474,1716408638379,-155.0,0.0002,2]
[327737476,1716408638389,-155.0,0.0002,2]
[327737478,1716408638398,-862.31038971,0.0002,2]
[327737480,1716408638407,-5186.20094472,0.0002,2]
[327737482,1716408638418,-627.95805638,0.0002,2]
[327737485,1716408638427,-6239.63008206,0.0002,2]
[327737487,1716408638436,-1773.62143972,0.0002,2]
[327737489,1716408638445,-16263.0,0.00020116,2]
[327737491,1716408638454,-250.0,0.00020126,2]
[327737493,1716408638463,-167.0,0.00020326,2]
[327737495,1716408638473,-414.0,0.0002038,2]
[327737497,1716408638482,-955.98631994,0.0002051,2]
[327737499,1716408638491,-1000.0,0.00020546,2]
[327737506,1716408638659,-19925.35,0.00020548,2]
[327737507,1716408638670,-327.01,0.00020656,2]
[327737508,1716408638679,-350.0,0.00020674,2]
[327737509,1716408638688,-187.25575375,0.00020684,2]
[327737510,1716408638698,-567.695,0.00020691,2]
[327737511,1716408638707,-567.695,0.00020785,2]
[327737512,1716408638716,-567.695,0.00020879,2]
[327737513,1716408638725,-167.0,0.0002089,2]
[327737514,1716408638734,-187.21036864,0.00020956,2]
[327737515,1716408638743,-567.695,0.00020974,2]
[327737516,1716408638752,-215.95640325,0.00020994,2]
[327737517,1716408638761,-172.24560322,0.00020994,2]
[327737518,1716408638771,-717.9371715,0.00021,2]
[327737519,1716408638780,-1750.0,0.00021,2]
[327737520,1716408638789,-318700.559,0.00021056,2]
[327737521,1716408638798,-567.695,0.0002107,2]
[327737522,1716408638808,-1000.0,0.00021094,2]
[327737523,1716408638817,-2605.38794838,0.00021157,2]
[327737524,1716408638826,-150.0,0.00021163,2]
[327737525,1716408638835,-150.0,0.00021163,2]
[327737526,1716408638845,-209.0,0.00021163,2]
[327737527,1716408638855,-1400.0,0.00021163,2]
[327737528,1716408638864,-1059.0,0.00021163,2]
[327737529,1716408638874,-567.695,0.00021167,2]
[327737530,1716408638883,-450.0,0.00021222,2]
[327737531,1716408638892,-567.695,0.00021265,2]
[327737532,1716408638901,-567.695,0.00021364,2]
[327737533,1716408638912,-155.0,0.00021373,2]
[327737534,1716408638921,-1000.0,0.00021588,2]
[327737535,1716408638930,-1000.0,0.00021588,2]
[327737536,1716408638939,-1000.0,0.00021588,2]
[327737537,1716408638948,-37481.60438299,0.00021589,2]
[327737538,1716408638958,-1039.40241281,0.00021589,2]
[327737539,1716408638966,-200.0,0.00021589,2]
[327737540,1716408638976,-257.11879413,0.00021589,2]
[327737541,1716408638987,-445.41817332,0.00021589,2]
[327737542,1716408638997,-500.0,0.00021589,2]
[327737543,1716408639006,-19734.40747855,0.00021589,2]
[327737544,1716408639015,-1043.83643081,0.00021589,2]
[327737545,1716408639025,-346.42279959,0.00021589,2]
[327737546,1716408639035,-1000.0,0.00021642,2]
[327737547,1716408639045,-151.97,0.00021661,2]
[327737548,1716408639054,-215.95640323,0.00021721,2]
[327737549,1716408639065,-550.0,0.0002177,2]
[327737550,1716408639075,-243.74,0.00021778,2]
[327737551,1716408639086,-2717.17,0.00021817,2]
[327737552,1716408639095,-6771.4801469,0.000219,2]
[327737553,1716408639105,-1000.0,0.000219,2]
[327737554,1716408639115,-500.0,0.00021916,2]
[327737555,1716408639125,-800.0,0.00021916,2]
[327737556,1716408639135,-1423.9,0.00021918,2]
[327737557,1716408639145,-529.9,0.00021918,2]
[327737558,1716408639155,-2000.0,0.00021918,2]
[327737559,1716408639170,-163.86,0.00021918,2]
[327737560,1716408639179,-6332.01,0.00021941,2]
[327737561,1716408639189,-167.0,0.00021979,2]
[327737562,1716408639199,-1501.18491719,0.00022,2]
[327737563,1716408639209,-787.61802861,0.00022,2]
[327737564,1716408639218,-155.263172,0.00022,3]
[327737565,1716408639228,-150.09523981,0.00022018,2]
[327737566,1716408639238,-1050.78423443,0.00022034,2]
[327737567,1716408639250,-418.24698787,0.00022065,2]
[327737568,1716408639260,-157.51322458,0.00022068,2]
[327737569,1716408639269,-332.37264762,0.00022072,2]
[327737570,1716408639279,-154.96503138,0.00022074,2]
[327737571,1716408639288,-840.03,0.00022082,2]
[327737572,1716408639298,-870.02,0.00022082,2]
[327737573,1716408639308,-870.02,0.00022082,2]
[327737574,1716408639317,-870.02,0.00022082,2]
[327737575,1716408639327,-159.14397516,0.00022088,2]
[327737576,1716408639337,-152.76128862,0.00022108,2]
[327737577,1716408639347,-152.76128862,0.00022128,2]
[327737578,1716408639356,-1000.0,0.00022135,2]
[327737579,1716408639366,-166.66666667,0.00022182,2]
[327737580,1716408639376,-153.18821613,0.00022188,2]
[327737581,1716408639385,-157.4269822,0.0002219,2]
[327737582,1716408639394,-1000.0,0.0002219,2]
[327737583,1716408639403,-173.50293998,0.00022196,2]
[327737584,1716408639413,-157.51322458,0.00022197,2]
[327737585,1716408639423,-779.12495382,0.00022236,2]
[327737586,1716408639433,-153.23677825,0.00022245,2]
[327737587,1716408639442,-166.66666667,0.00022265,2]
[327737588,1716408639451,-187.25575375,0.00022292,2]
[327737589,1716408639461,-650.0,0.00022318,2]
[327737590,1716408639470,-1291.50389298,0.00022319,2]
[327737591,1716408639479,-418.24698787,0.00022329,2]
[327737592,1716408639489,-840.88,0.00022356,2]
[327737593,1716408639498,-813.76,0.00022356,2]
[327737594,1716408639507,-326.89,0.00022356,2]
[327737595,1716408639516,-779.12495382,0.00022422,2]
[327737596,1716408639525,-215.95640323,0.00022447,2]
[327737597,1716408639535,-800.0,0.00022464,2]
[327737598,1716408639545,-1291.50389298,0.00022469,2]
[327737599,1716408639555,-191.48727825,0.00022477,2]
[327737600,1716408639564,-150.0,0.000225,3]
[327737601,1716408639574,-332.37264762,0.00022586,2]
[327737602,1716408639584,-779.12495382,0.00022618,2]
[327737603,1716408639593,-166.66666667,0.00022631,2]
[327737604,1716408639603,-153.18821613,0.00022647,2]
[327737605,1716408639612,-153.98057684,0.00022696,2]
[327737606,1716408639622,-332.37264762,0.00022717,2]
[327737607,1716408639631,-380.41775474,0.00022736,2]
[327737608,1716408639641,-1000.0,0.00022738,2]
[327737609,1716408639651,-152.76128862,0.00022767,2]
[327737610,1716408639661,-215.71528153,0.00022767,2]
[327737611,1716408639671,-165.4023761,0.00022769,2]
[327737612,1716408639680,-153.18821613,0.00022778,2]
[327737613,1716408639690,-200.0,0.00022816,2]
[327737614,1716408639699,-1000.0,0.00022816,2]
[327737615,1716408639708,-200.0,0.00022816,2]
[327737616,1716408639718,-155.19421787,0.00022822,2]
[327737617,1716408639727,-1291.50389298,0.00022835,2]
[327737618,1716408639737,-750.0,0.00022865,2]
[327737619,1716408639747,-4487.03464742,0.00022898,2]
[327737620,1716408639756,-411.163,0.00022898,2]
[327737621,1716408639765,-168.53006914,0.000229,2]
[327737622,1716408639775,-150.0,0.00022904,2]
[327737623,1716408639785,-150.0,0.00022904,2]
[327737624,1716408639794,-327.01,0.00022952,2]
[327737625,1716408639804,-159.03061843,0.00022975,2]
[327737626,1716408639813,-4597.25690778,0.00022977,2]
[327737627,1716408639822,-6027.7414515,0.00022987,2]
[327737628,1716408639832,-56542.4752383,0.00022987,2]
[327737629,1716408639842,-1291.50389298,0.00022989,2]
[327737630,1716408639851,-4487.03464732,0.00022989,2]
[327737631,1716408639860,-321.60405701,0.0002299,2]
[327737632,1716408639870,-610.4966288,0.00022996,2]
[327737633,1716408639880,-11048.2079266,0.00022996,2]
[327737634,1716408639889,-3918.5250814,0.00022996,2]
[327737635,1716408639898,-875.1182561,0.00022996,2]
[327737636,1716408639908,-298.09195788,0.00022997,2]
[327737637,1716408639919,-286.43893476,0.00022997,2]
[327737638,1716408639928,-160.84527705,0.00022997,2]
[327737639,1716408639938,-155.21401085,0.00022997,2]
[327737640,1716408639948,-3284.07186617,0.00022997,2]
[327737641,1716408639957,-218.42502293,0.00022997,2]
[327737642,1716408639968,-399.94974097,0.00022997,2]
[327737643,1716408639978,-163.14617584,0.00022997,2]
[327737644,1716408639987,-3967.3465446,0.00022997,2]
[327737645,1716408639997,-156.09220759,0.00022997,2]
[327737646,1716408640007,-4742.3033678,0.00022997,2]
[327737647,1716408640017,-254.07261996,0.00022997,3]
[327737648,1716408640027,-198.5631271,0.00022997,2]
[327737649,1716408640037,-1063.74496657,0.00022997,2]
[327737650,1716408640047,-194.97199603,0.00022997,2]
[327737651,1716408640057,-155.33007435,0.00022997,2]
[327737652,1716408640066,-155.0,0.00022997,2]
[327737653,1716408640077,-319.6333066,0.00022997,2]
[327737654,1716408640086,-155.07911752,0.00022997,2]
[327737655,1716408640096,-158.08787055,0.00022997,2]
[327737656,1716408640105,-2752.8475968,0.00022997,2]
[327737657,1716408640115,-391.3107698,0.00022998,2]
[327737658,1716408640124,-523.4267224,0.00022998,2]
[327737659,1716408640134,-16292.02914621,0.00022998,2]
[327737660,1716408640144,-380.07068393,0.00022998,2]
[327737661,1716408640153,-5563.87798505,0.00022998,2]
[327737662,1716408640165,-789.70862048,0.00022998,2]
[327737663,1716408640175,-155.0,0.00022998,2]
[327737664,1716408640185,-817.28432446,0.00022998,2]
[327737665,1716408640195,-207.17530482,0.00022998,2]
[327737666,1716408640207,-263.02958027,0.00022998,2]
[327737667,1716408640217,-155.58088805,0.00022998,2]
[327737668,1716408640226,-2496.42907446,0.00022999,2]
[327737669,1716408640236,-1192.683,0.00022999,2]
[327737670,1716408640249,-1044353.14061416,0.00023,5]
[327737671,1716408640260,-5511.49091993,0.00023,2]
[327737672,1716408640270,-344.0,0.00023,2]
[327737673,1716408640280,-1000.0,0.00023,3]
[327737674,1716408640290,-155.0,0.00023,5]
[327737675,1716408640301,-37045.52811133,0.00023,7]
[327737676,1716408640311,-327.77066928,0.00023,2]
[327737677,1716408640321,-2000.0,0.00023,2]
[327737678,1716408640332,-200.0,0.00023,2]
[327737679,1716408640342,-1800.0,0.00023,2]
[327737680,1716408640352,-151.0,0.00023,7]
[327737681,1716408640361,-151.0,0.00023,7]
[327737682,1716408640372,-153.687288,0.00023,7]
[327737683,1716408640381,-151.0,0.00023,7]
[327737684,1716408640392,-151.0,0.00023,7]
[327737685,1716408640401,-151.763336,0.00023,7]
[327737686,1716408640413,-226.87955,0.00023,7]
[327737687,1716408640423,-226.87955,0.00023,7]
[327737688,1716408640432,-151.0,0.00023,7]
[327737689,1716408640443,-151.0,0.00023,7]
[327737690,1716408640452,-151.0,0.00023,7]
[327737691,1716408640462,-151.0,0.00023,7]
[327737692,1716408640472,-151.0,0.00023,7]
[327737693,1716408640481,-151.0,0.00023,7]
[327737694,1716408640491,-151.0,0.00023,7]
[327737695,1716408640501,-153.533247,0.00023,7]
[327737696,1716408640511,-151.0,0.00023,7]
[327737697,1716408640520,-152.604209,0.00023,7]
[327737698,1716408640530,-151.0,0.00023,7]
[327737699,1716408640540,-151.0,0.00023,7]
[327737700,1716408640549,-151.0,0.00023,7]
[327737701,1716408640559,-151.0,0.00023,7]
[327737702,1716408640568,-151.0,0.00023,7]
[327737703,1716408640577,-151.0,0.00023,7]
[327737704,1716408640587,-276.640521,0.00023,7]
[327737705,1716408640596,-276.640521,0.00023,7]
[327737706,1716408640605,-153.440934,0.00023,7]
[327737707,1716408640615,-151.0,0.00023,7]
[327737708,1716408640625,-151.0,0.00023,7]
[327737709,1716408640635,-151.0,0.00023,7]
[327737710,1716408640644,-151.0,0.00023,7]
[327737711,1716408640654,-151.0,0.00023,7]
[327737712,1716408640665,-500.0,0.00023,2]
[327737713,1716408640674,-500.0,0.00023,2]
[327737714,1716408640683,-151.0,0.00023,7]
[327737715,1716408640693,-151.0,0.00023,7]
[327737716,1716408640702,-151.0,0.00023,7]
[327737717,1716408640711,-151.0,0.00023,7]
[327737718,1716408640720,-151.0,0.00023,7]
[327737719,1716408640729,-171.506862,0.00023,7]
[327737720,1716408640739,-151.0,0.00023,7]
[327737721,1716408640748,-150.0,0.00023,3]
[327737722,1716408640757,-500.0,0.00023012,2]
[327737723,1716408640766,-800.0,0.00023012,2]
[327737724,1716408640776,-157.264026,0.00023014,2]
[327737725,1716408640785,-779.12495382,0.00023029,2]
[327737726,1716408640795,-153.98057684,0.00023043,2]
[327737727,1716408640805,-157.51322458,0.00023048,2]
[327737728,1716408640815,-10000.0,0.00023049,2]
[327737729,1716408640825,-150.09523981,0.0002305,2]
[327737730,1716408640835,-154.230313,0.00023056,2]
[327737731,1716408640846,-169.00998555,0.00023058,2]
[327737732,1716408640858,-167.0,0.00023069,2]
[327737733,1716408640868,-175.064598,0.0002307,2]
[327737734,1716408640878,-176.466675,0.0002307,2]
[327737735,1716408640887,-4487.03464732,0.0002308,2]
[327737736,1716408640897,-332.37264762,0.00023094,2]
[327737737,1716408640907,-152.76128862,0.00023133,2]
[327737738,1716408640917,-6335.483947,0.00023149,2]
[327737739,1716408640926,-1495.936157,0.00023149,2]
[327737740,1716408640935,-671.594503,0.00023149,2]
[327737741,1716408640945,-1601.304016,0.00023149,2]
[327737742,1716408640954,-418.441236,0.00023149,2]
[327737743,1716408640964,-216.461125,0.00023149,2]
[327737744,1716408640973,-11630.388086,0.00023149,2]
[327737745,1716408640982,-208.41694,0.00023149,2]
[327737746,1716408640992,-766.769468,0.00023149,2]
[327737747,1716408641001,-150.887097,0.00023149,2]
[327737748,1716408641011,-17445.58213,0.00023149,2]
[327737749,1716408641020,-187.687345,0.00023149,2]
[327737750,1716408641030,-185.076375,0.00023149,2]
[327737751,1716408641039,-312.62541,0.00023149,2]
[327737752,1716408641048,-1150.154201,0.00023149,2]
[327737753,1716408641058,-4487.03464732,0.00023171,2]
[327737754,1716408641067,-215.95640323,0.00023174,2]
[327737755,1716408641076,-157.51322458,0.00023181,2]
[327737756,1716408641085,-779.12495382,0.00023184,2]
[327737757,1716408641095,-167.0,0.00023199,2]
[327737758,1716408641245,-1119.67,0.000232,2]
[327737759,1716408641255,-160.53907372,0.00023213,2]
[327737760,1716408641263,-2000.0,0.0002323,2]
[327737761,1716408641272,-200.0,0.0002323,2]
[327737762,1716408641281,-1000.0,0.00023231,2]
[327737763,1716408641290,-4487.03464732,0.00023262,2]
[327737764,1716408641299,-169.1813528,0.00023285,2]
[327737765,1716408641308,-1000.0,0.00023286,2]
[327737766,1716408641317,-154.96503138,0.00023297,2]
[327737767,1716408641326,-193.19960708,0.00023328,2]
[327737768,1716408641336,-164.78059618,0.00023328,2]
[327737769,1716408641345,-308.25,0.00023331,2]
[327737770,1716408641354,-420.57,0.00023331,2]
[327737771,1716408641363,-150.0,0.00023331,2]
[327737772,1716408641372,-150.51,0.00023331,2]
[327737773,1716408641381,-160.82,0.00023331,2]
[327737774,1716408641391,-150.0,0.00023331,2]
[327737775,1716408641400,-150.0,0.00023331,2]
[327737776,1716408641409,-150.0,0.00023331,2]
[327737777,1716408641422,-150.0,0.00023331,2]
[327737778,1716408641431,-420.93,0.00023331,2]
[327737779,1716408641441,-150.0,0.00023331,2]
[327737780,1716408641451,-150.0,0.00023331,2]
[327737781,1716408641460,-420.93,0.00023331,2]
[327737782,1716408641469,-420.93,0.00023331,2]
[327737783,1716408641479,-150.0,0.00023331,2]
[327737784,1716408641488,-351.8,0.00023331,2]
[327737785,1716408641498,-326.62,0.00023331,2]
[327737786,1716408641508,-150.0,0.00023331,2]
[327737787,1716408641517,-150.0,0.00023331,2]
[327737788,1716408641527,-150.0,0.00023331,2]
[327737789,1716408641537,-420.93,0.00023331,2]
[327737790,1716408641547,-420.93,0.00023331,2]
[327737791,1716408641556,-839.27,0.00023331,2]
[327737792,1716408641566,-554.01,0.00023331,2]
[327737793,1716408641575,-524.28,0.00023331,2]
[327737794,1716408641585,-420.56,0.00023331,2]
[327737795,1716408641595,-524.28,0.00023331,2]
[327737796,1716408641606,-524.28,0.00023331,2]
[327737797,1716408641616,-524.28,0.00023331,2]
[327737798,1716408641627,-524.28,0.00023331,2]
[327737799,1716408641636,-176.466675,0.00023351,2]
[327737800,1716408641646,-4487.03464732,0.00023353,2]
[327737801,1716408641656,-418.24698787,0.0002336,2]
[327737802,1716408641669,-150.09523981,0.00023371,2]
[327737803,1716408641679,-2004.82313321,0.000234,2]
[327737804,1716408641689,-153.98057684,0.00023408,2]
[327737805,1716408641700,-494.09574056,0.00023413,2]
[327737806,1716408641710,-151.0,0.00023428,7]
[327737807,1716408641720,-151.0,0.00023428,7]
[327737808,1716408641729,-151.0,0.00023428,7]
[327737809,1716408641739,-151.0,0.00023428,7]
[327737810,1716408641749,-151.0,0.00023428,7]
[327737811,1716408641758,-369.700962,0.00023428,7]
[327737812,1716408641768,-151.0,0.00023428,7]
[327737813,1716408641777,-369.700962,0.00023428,7]
[327737814,1716408641787,-272.076501,0.00023428,7]
[327737815,1716408641796,-154.230313,0.00023428,2]
[327737816,1716408641806,-167.486043,0.00023428,2]
[327737817,1716408641815,-6335.483947,0.00023428,2]
[327737818,1716408641824,-1495.936157,0.00023428,2]
[327737819,1716408641834,-671.594503,0.00023428,2]
[327737820,1716408641843,-1601.304016,0.00023428,2]
[327737821,1716408641853,-418.441236,0.00023428,2]
[327737822,1716408641862,-216.461125,0.00023428,2]
[327737823,1716408641872,-11630.388086,0.00023428,2]
[327737824,1716408641881,-208.41694,0.00023428,2]
[327737825,1716408641890,-766.769468,0.00023428,2]
[327737826,1716408641900,-150.887097,0.00023428,2]
[327737827,1716408641909,-17445.58213,0.00023428,2]
[327737828,1716408641921,-187.687345,0.00023428,2]
[327737829,1716408641930,-185.076375,0.00023428,2]
[327737830,1716408641939,-312.62541,0.00023428,2]
[327737831,1716408641948,-1150.154201,0.00023428,2]
[327737832,1716408641958,-4487.03464732,0.00023445,2]
[327737833,1716408641967,-150.0,0.00023452,2]
[327737834,1716408641977,-150.0,0.00023452,2]
[327737835,1716408641986,-150.0,0.00023452,2]
[327737836,1716408641996,-1200.58933735,0.00023457,2]
[327737837,1716408642005,-2000.0,0.00023462,2]
[327737838,1716408642014,-200.0,0.00023462,2]
[327737839,1716408642024,-157.4269822,0.00023462,2]
[327737840,1716408642033,-150.0,0.000235,3]
[327737841,1716408642043,-166.66666667,0.00023511,2]
[327737842,1716408642052,-153.98057684,0.00023515,2]
[327737843,1716408642061,-4487.03464732,0.00023536,2]
[327737844,1716408642071,-800.0,0.0002356,2]
[327737845,1716408642080,-151.0,0.00023561,7]
[327737846,1716408642089,-151.0,0.00023561,7]
[327737847,1716408642099,-151.0,0.00023561,7]
[327737848,1716408642108,-151.0,0.00023561,7]
[327737849,1716408642117,-151.0,0.00023561,7]
[327737850,1716408642126,-151.0,0.00023561,7]
[327737851,1716408642136,-151.0,0.00023561,7]
[327737852,1716408642145,-156.002864,0.00023561,7]
[327737853,1716408642155,-151.0,0.00023561,7]
[327737854,1716408642168,-151.0,0.00023561,7]
[327737855,1716408642177,-276.640521,0.00023561,7]
[327737856,1716408642186,-276.640521,0.00023561,7]
[327737857,1716408642196,-160.393363,0.00023561,7]
[327737858,1716408642206,-152.739985,0.00023561,7]